Cogmind - Beta 15 @@@ ROGUE MODE // 2025.07.04 @ 11:36:31 Player: f3-rnm Result: Smashed by cave-in Performance ------------- Evolutions (0) 0 Regions Visited (2) 400 Robots Destroyed (39) 195 Value Destroyed (1017) 1017 Prototype IDs (0) 0 Alien Tech Used (0) 0 Bonus (0) 0 TOTAL SCORE: 1612 Bonus ------- None Cogmind --------- Core Integrity 0/250 Matter 7/300 Energy 100/100 System Corruption 0% Temperature Cool (0) Movement Rolling (150) Ox4 Location -10/Subcaves Parts ------- > --- POWER (1) -------- Subdweller Power Source > --- PROPULSION (2) --- Spiked Treads Subdweller Monowheel > --- UTILITY (2) ------ Huge Storage Unit Light Armor Plating > --- WEAPON (2) ------- Light Cannon Hammer > --- INVENTORY (25) --- Light Nuclear Core Light Treads Wheel Subdweller Monowheel Improved Heat Sink Medium Storage Unit Light Humpback Medium Matter Pod (100) Medium Matter Pod (100) Medium Matter Pod (100) Medium Matter Pod (100) Machine Analyzer Makeshift System Shield Riot Gun Particle Gun Subdweller Beam Cannon Shotgun Shotgun Subdweller Machine Gun Battle Cannon Battle Cannon Subdweller Shrapnel Launcher Makeshift Axe Makeshift Spear Peak State ------------ > --- POWER ------------ Subdweller Power Source > --- PROPULSION ------- Spiked Treads Subdweller Monowheel > --- UTILITY ---------- Huge Storage Unit Medium Armor Plating > --- WEAPON ----------- Light Cannon Battle Cannon > --- INVENTORY -------- Light Nuclear Core Light Treads Wheel Improved Heat Sink Medium Storage Unit Light Humpback Medium Matter Pod Medium Matter Pod Medium Matter Pod Medium Matter Pod Light Armor Plating Light Armor Plating Medium Armor Plating Makeshift System Shield Riot Gun Particle Gun Subdweller Beam Cannon Shotgun Shotgun Subdweller Machine Gun Battle Cannon Subdweller Shrapnel Launcher Hammer Makeshift Axe [Rating: 16] Favorites ----------- Power Light Ion Engine Engine Light Ion Engine Propulsion Light Treads Treads Light Treads Wheel Subdweller Monowheel Utility Medium Armor Plating Storage Huge Storage Unit Protection Medium Armor Plating Weapon Shotgun Energy Gun Particle Gun Ballistic Gun Shotgun Ballistic Cannon Light Cannon Launcher Subdweller Shrapnel Launcher Impact Weapon Hammer Build | -11 -10 -10 ------- Run | Yrd Mat Sub Slots Evolved . | . . . Power . | . . . Propulsion . | . . . Utility . | . . . Weapon . | . . . Parts Attached 29 | 6 7 16 Power 3 | 1 1 1 Engine 3 | 1 1 1 Core . | . . . Reactor . | . . . Propulsion 7 | 2 1 4 Treads 3 | 2 . 1 Leg . | . . . Wheel 4 | . 1 3 Hover . | . . . Flight . | . . . Utility 7 | 1 3 3 Device . | . . . Storage 2 | 1 1 . Processor . | . . . Hackware . | . . . Protection 5 | . 2 3 Artifact . | . . . Weapon 12 | 2 2 8 Energy Gun 3 | 1 . 2 Energy Cannon . | . . . Ballistic Gun 4 | 1 2 1 Ballistic Cannon 3 | . . 3 Launcher 1 | . . 1 Special Weapon . | . . . Impact Weapon 1 | . . 1 Slashing Weapon . | . . . Piercing Weapon . | . . . Special Melee Weapon . | . . . Unidentified Prototypes . | . . . Parts Lost 7 | . 1 6 Power 1 | . . 1 Propulsion 2 | . . 2 Utility 4 | . 1 3 Weapon . | . . . Highest Loss Streak 2 | . 1 2 To Critical Strikes . | . . . Average Backups 19 | 2 14 23 Power 1 | . . 1 Propulsion 2 | 1 2 2 Utility 8 | . 6 10 Weapon 7 | . 4 9 Tool/Special . | . . . Unused Backups 21 | . 4 17 Power 2 | . 1 1 Propulsion 2 | . 1 1 Utility 10 | . . 10 Weapon 7 | . 2 5 Tool/Special . | . . . Average Slot Usage (%) 99 | . 98 99 Engine 13 | . 14 13 Treads 17 | . 21 14 Wheel 10 | . 6 13 Storage 14 | . 14 14 Protection 13 | . 13 13 Energy Gun 1 | . . 1 Ballistic Gun 13 | . 27 4 Ballistic Cannon 11 | . . 18 Impact Weapon 1 | . . 2 Peak Build Rating 16 | 6 12 16 Average Rating 13 | 4 11 14 On Entrance 6 | . 6 12 Naked Turns . | . . . Heaviest Build 98 | 12 96 98 Greatest Support 40 | 40 40 40 Greatest Overweight (x) 9 | . 9 6 Average Overweight (x) 4 | . 4 4 Largest Inventory Capacity 25 | 8 25 25 Average Capacity 23 | 7 21 25 Most Carried 25 | 5 19 25 Average Carried 19 | 3 14 23 Final Capacity 25 | 8 25 25 Final Carried 25 | 5 19 25 Class Distribution -------------------- 100% | Mutant Dominant Class ---------------- Mutant | -10/Materials Mutant | -10/Subcaves Resources | -11 -10 -10 ----------- Run | Yrd Mat Sub Matter Collected 1547 | 225 777 545 Remotely . | . . . Salvage Created 899 | . 575 324 Parts 75 | . 49 26 Haulers Intercepted 1 | . 1 . Recyclers Shooed . | . . . Parts Field Recycled . | . . . Retrieved Matter . | . . . Parts Self-Destructed 18 | . . 18 Prevented . | . . . Kills | -11 -10 -10 ------- Run | Yrd Mat Sub Combat Hostiles Destroyed 35 | . 19 16 Guns 24 | . 19 5 Cannons 7 | . . 7 AOE 4 | . . 4 Classes Destroyed 8 | . 5 3 Worker 1 | . 1 . Hauler 1 | . 1 . Operator 1 | . 1 . Turret 1 | . . 1 Swarmer 13 | . 9 4 Grunt 10 | . 10 . Sentry 1 | . . 1 Subdweller 11 | . . 11 Best Kill Streak 5 | . 3 5 Combat Bots Only 4 | . 3 4 Max Kills in Single Turn 3 | . 2 3 Gunslinging 1 | . 1 . Exploded 3 | . . 3 Melee . | . . . Uniques/NPCs Destroyed . | . . . Combat | -11 -10 -10 -------- Run | Yrd Mat Sub Hostile Shots Fired 171 | . 70 101 Missed 54 | . 17 37 Hits 117 | . 53 64 Projectile 117 | . 53 64 AOE 1 | . . 1 Critical Strikes 3 | . . 3 Damage Taken 1857 | . 496 1361 Core 256 | . 48 208 Absorbed by Shields . | . . . Core Remaining (%) 100 | 100 . . Volleys Fired 112 | . 42 70 Largest 2 | . 2 2 Hottest 130 | . 70 130 Shots Fired 220 | . 84 136 Gun 120 | . 84 36 Cannon 96 | . . 96 Launcher 4 | . . 4 Special . | . . . Kinetic 195 | . 77 118 Thermal 25 | . 7 18 Explosive . | . . . Electromagnetic . | . . . Robot Hit Streak 12 | . 10 12 Robot Miss Streak 5 | . 5 2 Penetration Max . | . . . Secondary Targets 4 | . 3 1 Max Gunslinging Chain 1 | . 1 1 Shots Hit Robots 117 | . 56 61 Core Hits 69 | . 38 31 Critical Kills 1 | . 1 . Critical Parts Destroyed . | . . . Critical Strikes 5 | . 1 4 Burn 1 | . . 1 Destroy 3 | . 1 2 Blast 1 | . . 1 Melee Attacks 41 | . . 41 Impact 41 | . . 41 Slashing . | . . . Piercing . | . . . Sneak Attacks . | . . . Combat Hostiles . | . . . Follow-up Attacks . | . . . Damage Inflicted 2275 | . 899 1376 Guns 1339 | . 899 440 Cannons 513 | . . 513 Explosions 423 | . . 423 Melee . | . . . Ramming . | . . . Kinetic 2086 | . 862 1224 Thermal 189 | . 37 152 Explosive . | . . . Electromagnetic . | . . . Impact . | . . . Slashing . | . . . Piercing . | . . . Highest Corruption . | . . . Average Corruption . | . . . Corruption Purged . | . . . Corruption Blocked . | . . . Overload Shots . | . . . Overflow Damage 7 | . . 7 Projectiles . | . . . Explosions 7 | . . 7 Melee . | . . . Knockbacks 3 | . . 3 Impact . | . . . Kinetic 3 | . . 3 Secondary . | . . . Self-Inflicted Damage . | . . . Shots . | . . . Rammed . | . . . Targets Rammed . | . . . Kicked . | . . . Crushed . | . . . Highest Temperature 27 | . 27 18 Average Temperature 9 | . 9 9 Received Heat Transfer 420 | . 138 282 Siege Activations . | . . . Martial Activations . | . . . Shielding Activations . | . . . Robots Disrupted . | . . . Combat Hostiles . | . . . Robots Corrupted . | . . . Combat Hostiles . | . . . Parts Fried . | . . . Impact Corruptions . | . . . Robots Melted . | . . . Combat Hostiles . | . . . Parts Melted 4 | . . 4 Heat Transferred 592 | . 111 481 Parts Sabotaged . | . . . Parts Stolen . | . . . Parts Stripped . | . . . Power Chain Reactions . | . . . Alert | -11 -10 -10 ------- Run | Yrd Mat Sub Maximum Alert Level . | . . . Low Security (%) 100 | 100 100 . Level 1 . | . . . Level 2 . | . . . Level 3 . | . . . Level 4 . | . . . Level 5 . | . . . High Security . | . . . Max Security . | . . . Peak Influence 151 | . 151 . Initial . | . . . Average 41 | . 43 . Influence Increases 613 | . 478 135 Destroy 0b10 Robot/C 500 | . 380 120 Destroy 0b10 Robot/NC 15 | . 15 . Destroy Leader 82 | . 82 . Destroy Structure 1 | . 1 . Lose Combat Pursuer 15 | . . 15 Influence Decreases 613 | . 475 138 Entered New Map 3 | . . 3 Time Decay 580 | . 465 115 Lost Part 30 | . 10 20 Squads Dispatched 4 | . 4 . Investigation 1 | . 1 . Extermination . | . . . Reinforcement 3 | . 3 . Assault . | . . . Garrison . | . . . Intercept . | . . . Searches Triggered . | . . . Construction Impeded . | . . . Haulers Reinforced . | . . . Active Scanning Responses . | . . . Cargo Convoy Interrupts . | . . . Stealth | -11 -10 -10 --------- Run | Yrd Mat Sub Distress Signals 1 | . 1 . Communications Jammed . | . . . Distress Signals . | . . . Times Spotted 60 | . 43 17 Peak Tracking Total 6 | . 4 6 Tactical Retreats 1 | . . 1 Traps | -11 -10 -10 ------- Run | Yrd Mat Sub Traps Triggered 6 | . 2 4 Indirectly . | . . . Trap Hack Attempts . | . . . Triggered . | . . . Disarmed . | . . . Reprogrammed . | . . . Reused . | . . . Traps Extracted . | . . . Installed . | . . . Triggered . | . . . Machines | -11 -10 -10 ---------- Run | Yrd Mat Sub Machines Disabled 4 | . . 4 Max in Single Turn 4 | . . 4 Machines Repaired . | . . . Machines Dismantled . | . . . Machines Sabotaged . | . . . Overloaded Fab Kills . | . . . Hacking | -11 -10 -10 --------- Run | Yrd Mat Sub Machines Accessed . | . . . Terminals . | . . . Fabricators . | . . . Repair Stations . | . . . Recycling Units . | . . . Scanalyzers . | . . . Garrison Access . | . . . Total Hacks . | . . . Successful . | . . . Failed . | . . . Catastrophic . | . . . Database Lockouts . | . . . Manual . | . . . Terminals . | . . . Fabricators . | . . . Repair Stations . | . . . Recycling Units . | . . . Scanalyzers . | . . . Garrison Access . | . . . Terminal Hacks . | . . . Fabricator Hacks . | . . . Repair Station Hacks . | . . . Recycling Unit Hacks . | . . . Scanalyzer . | . . . Garrison Access Hacks . | . . . Unauthorized Hacks . | . . . Terminals . | . . . Fabricators . | . . . Repair Stations . | . . . Recycling Units . | . . . Scanalyzers . | . . . Garrison Access . | . . . Data Cores Recovered . | . . . Used . | . . . Hacking Detections . | . . . Full Trace Events . | . . . Feedback Events . | . . . Feedback Blocked . | . . . Robot Schematics Acquired . | . . . Robots Built . | . . . Authchips . | . . . Time . | . . . Total Robot Build Rating . | . . . Part Schematics Acquired . | . . . Parts Built . | . . . Authchips . | . . . Time . | . . . Total Part Build Rating . | . . . Parts Repaired . | . . . Time . | . . . Parts Recycled . | . . . Recycled Matter . | . . . Retrieved Matter . | . . . Retrieved Components . | . . . Parts Scanalyzed . | . . . Part Schematics Acquired . | . . . Parts Damaged . | . . . Bothacking | -11 -10 -10 ------------ Run | Yrd Mat Sub Used RIF Installer . | . . . Robots Hacked . | . . . Non-combat . | . . . Combat . | . . . Robot Hacks Applied . | . . . Relay Couplers Released . | . . . Fabnet Peak Effective % . | . . . Robots Rewired . | . . . Allies Hacked . | . . . Hacks Repelled . | . . . Allies | -11 -10 -10 -------- Run | Yrd Mat Sub Total Allies . | . . . Largest Group . | . . . Highest-Rated Group . | . . . Highest-Rated Ally . | . . . Total Orders . | . . . Ally Attacks . | . . . Total Damage . | . . . Kills . | . . . Allies Corrupted . | . . . Allies Melted . | . . . Intel | -11 -10 -10 ------- Run | Yrd Mat Sub Active Infowar (turns) . | . . . Robot Analysis Total . | . . . Derelict Logs Recovered 1 | . . 1 Drone Launches . | . . . Drone Recoveries . | . . . Exploration | -11 -10 -10 ------------- Run | Yrd Mat Sub Turns Passed 4802 | 93 1877 2832 Spaces Moved 2153 | 53 708 1392 Core 4 | 4 . . Treads 378 | 49 312 17 Legs . | . . . Wheels 1771 | . 396 1375 Hover . | . . . Flight . | . . . Fastest Speed 50 | 50 110 150 Average Speed 181 | 151 220 162 Slowest Speed 480 | 160 320 480 Overloaded Moves . | . . . Propulsion Burnouts . | . . . Robots Hopped . | . . . Potential Cave-ins . | . . . Cave-ins Triggered 1 | . . 1 Exploration Rate (%) 57 | 4 91 76 Regions Visited 2 Branch Regions 1 Pre-discovered Areas 1 | . . 1 Known Exits Taken . | . . . Unknown Exits Taken 2 | 1 1 . Scrap Searched 3 | . . 3 Spaces Dug 5 | . . 5 Terrain Destroyed 35 | . . 35 Melee 4 | . . 4 Projectile 2 | . . 2 AOE 29 | . . 29 Terrain Rammed . | . . . Walls Destroyed . | . . . Machines Disabled . | . . . Actions | -11 -10 -10 --------- Run | Yrd Mat Sub Total 2744 | 63 942 1739 Wait 352 | . 155 197 Move 2151 | 52 707 1392 Hop . | . . . Pick Up 37 | 5 20 12 Fast Attach 12 | 6 4 2 Attach 8 | . 2 6 Detach . | . . . Swap 19 | . 4 15 Drop 12 | . 8 4 Fire 112 | . 42 70 Melee 41 | . . 41 Ram . | . . . Kick . | . . . Crush . | . . . Escape Stasis . | . . . Rewire . | . . . Trap . | . . . Miscellaneous . | . . . Route ------- -11/Scrapyard -10/Materials (discovered 6 exits: [*Mat x3] / [*Min x2] / [*Sub]) -10/Subcaves (discovered 2 exits: [*Mat] / [*Rec]) History --------- Turn | Location | Event 22 | -11/Scrapyard | Discovered new exit (range 16) 94 | -11/Scrapyard | Entered Materials 302 | -10/Materials | Build established: Mutant 374 | -10/Materials | Discovered new exit (range 16) 830 | -10/Materials | Discovered new exit (range 15) 1156 | -10/Materials | Discovered new exit (range 15) 1737 | -10/Materials | Discovered new exit (range 4) 1790 | -10/Materials | Discovered new exit (range 16) 1944 | -10/Materials | Discovered new exit (range 6) 1971 | -10/Materials | Entered Subcaves 1972 | -10/Subcaves | Approached by a straggling Scientist 2056 | -10/Subcaves | Ambushed by angry Subdweller bent on revenge 2419 | -10/Subcaves | Learned location of 1 exit from Materials 2513 | -10/Subcaves | Discovered new exit (range 10) 2564 | -10/Subcaves | Disturbed a concealed Subdweller 2564 | -10/Subcaves | Ambushed by Subdweller buried in earth 2727 | -10/Subcaves | Shifting Twisted Machinery released Battle Cannon 2727 | -10/Subcaves | Shifting Twisted Machinery released Battle Cannon 2879 | -10/Subcaves | Discovered new exit (range 15) 2947 | -10/Subcaves | Learned location of Zion (-6) 2947 | -10/Subcaves | Met a Zionite searching for "candidates" 3045 | -10/Subcaves | Core integrity fell below 50% 3614 | -10/Subcaves | Shifting Twisted Machinery released Mak. Spear 3621 | -10/Subcaves | Shifting Twisted Machinery released Sub. Optics 3939 | -10/Subcaves | A swath of the cavern ceiling suddenly collapsed 4558 | -10/Subcaves | Ambushed by Subdwellers from Twisted Machinery 4804 | -10/Subcaves | Crushed by falling debris 4804 | -10/Subcaves | Smashed by cave-in Last Messages --------------- 04559_ 5T-S3D(R) knocked back. 04559_ Med. Armor Plating destroyed. 04572_ 5T-S3D(R) destroyed. 04575_ T6-9I9(R) knocked back. 04578_ T6-9I9(R) Sub. Monowheel blasted off. 04578_ T6-9I9(R) knocked back. 04590_ T6-9I9(R) destroyed. 04598_ Acquired 5 matter. 04599_ Acquired 4 matter. 04604_ Acquired Sub. Monowheel. 04627_ E3-FPM(u) tweaks Twisted Machinery. 04653_ Acquired 22 matter. 04656_ Acquired Machine Analyzer. 04685_ Acquired 3 matter. 04713_ Subatomizers dissect the Sub. Monowheel. 04753_ Acquired 5 matter. 04756_ Acquired 32 matter. 04757_ Subatomizers dissect the Sub. Monowheel. 04804_ The unstable cave ceiling collapses. 04804_ Crushed by falling debris. Map ----- +----------------------------------------------------+ | "#?#"""""##?# #?????????????????????????????? | | ##?## ####??# ##?????????????????????????????? | | "####""#???## # #??????????????????????????????? | | " #" ###???# ####?##???????????????????????????? | | ""#""#?##### # ## #???????????????????????????? | | "#""#### ##??????????????????????????? | | "##""""## #??????????????????????????? | | "###" " " #??????????????????????????? | | "###" "## #??????????????????????????? | | ""########## #??????????????????????????? | | ""### #??## #??????????????????????????? | | ###"" ???# ## #??????????????????????????? | | #"# #?#### ## # #??????????????????????????? | | # #?## ## ##?????????????????????????? | | ### #?????????????????????????? | | ## ## #?????????????????????????? | | # #?????????????????????????? | | # ##### ## ##?????????????????????????? | | ## ### #???#### #?????????????????????????? | | ?# #?## #?###### ##???????????????????######? | | ?# ##?# ### & = ##???????????????#### ## | | ?## ### !! #???????????????# # | | ??## #????????????????# & # | | ???## ##???????????????#&&& ""# | | ????## ## #;##??????????????#! ##""## | | ?????## ###### ###@#??#####???????##&"##"#? | | ?????### #???# #?###### # ##???????#" ## | | ###### ###??# ##????# #= # #???????## # # | | # #???# #?????# ####???????#### "# | | ## #???## ##????## ##????????# ### # | | # # # #????#####?????# #?????????# | | # #??????????????## ### #????????# | | # ## ## ###??????????????# ##?##???????## ## | | =########????????????????## ##?????????# ####" | | * #????????????????????????# ##????????# #??## | | ^ ##??????????????????????## ##???###?## ###?? | | #?????????????????????## #?### ##?## ### | | ##????????????????????# ### #??# | | # ##???????????????????#### ## #### | | # #?????????????????????## ##* | | ##???????????????????### | | ###????????????????????# ### | | ###?????????????????????# ##?# | | ????????????????????????# #####??## | | ????????????????????????#### ##???????## | | ???????????????????????????# #?????????##### | | ???????????????????????????## ?????????????# | | ????????????????????????????## ????????????## | | ?????????????????????????????###???????????## | | ???????????????????????????????????????##### # | +----------------------------------------------------+ Best States ------------- Heat Dissipation 25 Energy Generation 15 Energy Capacity 200 Matter Stores 300 Matter Capacity 300 Sight Range 16 Terrain Scan Density 10 Armor Coverage 225 Evasion (%) 40 Recoil Reduction 2 Item Schematics ----------------- None Robot Schematics ------------------ None Fabricated ------------ Nothing Repaired ---------- Nothing Alien Tech Used ----------------- None Achievements -------------- None Challenges ------------ None Game ------ Seed SlugMetafieldRipper Manual? 0 Play Time 00:18:49 Cumulative 335.8 hours Start 2025.07.04 @ 11:22:50 End 2025.07.04 @ 11:36:31 Sessions 1 Manual Loads 0 Difficulty Rogue Special Mode None Game No. 324 Rogue 288 Adventurer 36 Explorer 0 Win Type - Total 12 Types 4/0/8/0/0/0/0/0/0/0 Lore% 70 Gallery% 82 Achievement% 74 Wizard Run 0 Options --------- Layout 0 ASCII 0 Keyboard 0 Movement Mouse Keybinds 0 Fullscreen 1 Font 18/SmallcapsGlow Map View 76x50 Zoom Use 0% Tactical HUD 1 Map Filters NONE Filters SHIFT_HUE(315) Steam 1 RUN: f44f8b0a-96f6-4740-afbe-f3a000835987